bitfinex/quotes_ETHUSD_20241215
["timestamp","ask_amount","ask_price","bid_price","bid_amount"]
[1734234202363,0.51618362,3874.2,3873.8,0.51787956]
[1734234202571,0.51618362,3874.2,3873.9,0.89288785]
[1734234206763,0.51618362,3874.2,3874.0,0.89282702]
[1734234206967,0.51618362,3874.2,3873.8,0.51787956]
[1734234207164,0.51618362,3874.2,3873.9,2.97084795]
[1734234207490,0.51618362,3874.2,3873.9,0.73877764]
[1734234208058,0.51618362,3874.2,3874.0,0.89287163]
[1734234208287,0.51618362,3874.2,3873.9,0.73877764]
[1734234208865,0.51618362,3874.2,3874.0,0.06247054]
[1734234209067,0.51618362,3874.2,3874.0,0.545039]
[1734234209262,0.51618362,3874.2,3874.1,3.21474217]
[1734234209501,0.51618362,3874.2,3874.1,4.17012076]
[1734234210151,0.51618362,3874.2,3874.1,5.50964225]
[1734234210391,0.51618362,3874.2,3874.1,4.17012076]
[1734234210563,0.51618362,3874.2,3874.1,6.34145016]
[1734234211260,0.51618362,3874.2,3874.1,6.34166186]
[1734234211479,0.51618362,3874.2,3874.1,6.34171288]
[1734234212057,0.51618362,3874.2,3874.1,5.00199622]
[1734234212256,0.51618362,3874.2,3874.1,0.95561066]
[1734234212566,0.51618362,3874.2,3874.1,0.06246622]
[1734234212998,0.51618362,3874.2,3873.7,5.42424217]
[1734234213296,0.51618362,3874.2,3873.8,2.23382012]
[1734234213497,0.51618362,3874.2,3873.8,2.29677907]
[1734234213702,0.51618362,3874.2,3873.9,0.89352805]
[1734234214062,0.51618362,3874.2,3874.0,0.06299656]
[1734234214471,0.51618362,3874.2,3873.7,5.42424217]
[1734234214780,0.51618362,3874.2,3873.8,2.29751292]
[1734234214989,0.51618362,3874.2,3873.9,0.89380308]
[1734234215299,0.51618362,3874.2,3874.0,0.06299656]
[1734234215796,0.51618362,3874.2,3873.7,6.50655686]
[1734234215989,0.51618362,3874.2,3874.1,0.06299306]
[1734234216195,0.51618362,3874.2,3873.7,6.50655686]
[1734234216372,0.51618362,3874.2,3874.1,0.06299306]
[1734234216581,0.51618362,3874.2,3873.7,6.50655686]
[1734234216791,0.51618362,3874.2,3874.1,0.06299306]
[1734234216995,0.51618362,3874.2,3873.7,6.50655686]
[1734234217313,0.51618362,3874.2,3874.0,1.06560147]
[1734234217665,0.51618362,3874.2,3874.1,0.06309713]
[1734234228419,0.51618362,3874.2,3874.1,0.95673388]
[1734234229500,0.51618362,3874.2,3874.1,0.95676763]
[1734234230426,0.51618362,3874.2,3874.1,2.29731726]
[1734234232858,0.51618362,3874.2,3874.1,3.08921382]
[1734234233557,0.51618362,3874.2,3874.1,4.17152851]
[1734234233709,0.51618362,3874.2,3874.1,4.1723868]
[1734234234048,0.51618362,3874.2,3874.1,3.09007211]
[1734234235114,0.51618362,3874.2,3874.1,4.1723868]
[1734234235455,0.51618362,3874.2,3874.1,3.09007211]
[1734234235766,0.51618362,3874.2,3874.1,4.1723868]
[1734234236179,0.51618362,3874.2,3874.1,3.38049024]
[1734234236474,0.51618362,3874.2,3874.1,3.36377702]
[1734234236660,0.51618362,3874.2,3874.1,2.02272997]
[1734234237262,0.51618362,3874.2,3874.1,3.36473638]
[1734234238178,0.51618362,3874.2,3874.1,3.36536388]
[1734234238685,0.51618362,3874.2,3874.1,0.95776324]
[1734234239030,0.51618362,3874.2,3874.1,0.06309713]
[1734234239381,0.51618362,3874.2,3874.1,0.89508892]
[1734234239876,0.51618362,3874.2,3874.1,0.06305664]
[1734234240172,0.51618362,3874.2,3874.1,0.89533001]
[1734234240478,0.51618362,3874.2,3874.1,0.95838665]
[1734234241284,0.51618362,3874.2,3874.1,2.30133149]
[1734234242869,0.51618362,3874.2,3874.1,3.38364618]
[1734234244379,0.51618362,3874.2,3874.1,4.52389]
[1734234244562,0.51618362,3874.2,3874.1,6.31442472]
[1734234244762,0.51618362,3874.2,3874.1,4.69839404]
[1734234244955,0.51618362,3874.2,3874.1,5.49049404]
[1734234245146,0.51618362,3874.2,3874.1,5.49025872]
[1734234246873,0.51618362,3874.2,3874.1,7.64496629]
[1734234247047,0.51618362,3874.2,3874.1,8.49025872]
[1734234247250,0.51618362,3874.2,3874.1,11.1968825]
[1734234248577,0.51618362,3874.2,3874.1,8.49025872]
[1734234250489,0.51618362,3874.2,3874.1,10.65399648]
[1734234251196,0.51618362,3874.2,3874.1,8.49025872]
[1734234252287,0.51618362,3874.2,3874.1,10.65359821]
[1734234253185,0.51618362,3874.2,3874.1,10.65156351]
[1734234258429,0.51618362,3874.2,3874.1,10.65075979]
[1734234262216,0.51618362,3874.2,3874.1,8.4874203]
[1734234262416,0.5130782,3874.2,3874.1,8.4874203]
[1734234263865,0.5130782,3874.2,3874.1,10.64951922]
[1734234264030,0.5130782,3874.2,3874.1,10.64953166]
[1734234266965,0.5130782,3874.2,3874.1,10.64903223]
[1734234271355,0.5130782,3874.2,3874.1,10.64929458]
[1734234271557,0.5130782,3874.2,3874.1,10.64928842]
[1734234272682,0.5130782,3874.2,3874.1,11.19007396]
[1734234273242,1.07617616,3875.8,3874.2,3.0]
[1734234273243,0.817,3875.4,3874.2,3.0]
[1734234273481,0.817,3875.4,3875.3,1.06560147]
[1734234273694,0.817,3875.9,3875.3,1.06560147]
[1734234273894,0.817,3875.9,3875.3,1.12797286]
[1734234281430,0.52340865,3875.4,3875.3,1.12797286]
[1734234282514,0.52340865,3875.4,3875.3,2.77521778]
[1734234282758,0.52340865,3875.4,3875.3,5.16771377]
[1734234283058,0.52340865,3875.4,3875.3,6.2488801]
[1734234283440,0.52340865,3875.4,3875.3,5.16771377]
[1734234284146,0.817,3876.1,3875.3,5.16771377]
[1734234284479,0.817,3876.1,3875.9,1.06560147]
[1734234284821,0.817,3876.5,3876.0,0.06196552]
[1734234286119,0.50753537,3876.1,3876.0,0.06196552]
[1734234286533,1.31783537,3876.1,3876.0,0.06196552]
[1734234290773,0.50753537,3876.1,3876.0,0.06196552]
[1734234290939,0.8103,3876.5,3876.0,0.82736552]
[1734234291144,0.8103,3876.9,3876.3,1.06560147]
[1734234291362,0.8103,3876.9,3876.4,0.06076303]
[1734234291521,0.8103,3876.9,3876.3,1.06560147]
[1734234291836,0.8103,3876.9,3876.4,0.06076303]
[1734234293063,0.51650045,3876.5,3876.3,1.06560147]
[1734234293571,0.51650045,3876.5,3876.4,0.06076303]
[1734234295588,0.51650045,3876.5,3876.4,0.19232915]
[1734234295964,1.07617616,3877.6,3876.4,0.95772915]
[1734234295965,0.8103,3877.4,3876.4,0.95772915]
[1734234296168,0.8103,3877.4,3877.0,1.06560147]
[1734234296413,0.51376628,3877.2,3877.0,1.06560147]
[1734234296571,0.8103,3877.4,3877.0,1.06560147]
[1734234296768,0.8103,3877.4,3877.1,0.06039786]
[1734234297383,0.8103,3877.4,3876.7,1.06560147]
[1734234297602,0.8103,3877.4,3877.2,0.0603861]
[1734234297913,0.51884213,3877.3,3876.7,1.06560147]
[1734234298289,0.51884213,3877.3,3876.8,0.0597855]
[1734234298612,0.51884213,3877.3,3876.7,1.06560147]
[1734234298777,0.51884213,3877.3,3876.9,0.05978118]
[1734234298978,0.51884213,3877.3,3876.7,1.06560147]
[1734234299185,0.51884213,3877.3,3877.0,0.05977687]
[1734234299758,0.51884213,3877.3,3876.7,1.06560147]
[1734234299889,0.51884213,3877.3,3877.1,0.05977255]
[1734234300223,0.51884213,3877.3,3877.2,0.0594911]
[1734234300522,0.51884213,3877.3,3876.7,1.06560147]
[1734234301099,0.51884213,3877.3,3876.8,0.05950837]
[1734234301417,0.51884213,3877.3,3876.7,1.06560147]
[1734234301626,0.51884213,3877.3,3876.9,0.05949828]
[1734234301916,0.51884213,3877.3,3876.8,0.05950259]
[1734234302077,0.51884213,3877.3,3877.0,0.05949396]
[1734234302474,0.51884213,3877.3,3876.7,1.06560147]
[1734234303024,0.51884213,3877.3,3876.8,0.05750377]
[1734234303194,0.51884213,3877.3,3876.7,1.06560147]
[1734234303536,0.51884213,3877.3,3876.9,0.05749946]
[1734234303871,0.51884213,3877.3,3876.7,1.06560147]
[1734234304077,0.51884213,3877.3,3877.0,0.05749514]
[1734234304296,0.51884213,3877.3,3876.7,1.26185823]
[1734234304488,0.51884213,3877.3,3877.1,0.05749083]
[1734234304693,0.51884213,3877.3,3876.7,1.26185823]
[1734234304897,0.51884213,3877.3,3877.2,0.05748651]
[1734234305292,0.51884213,3877.3,3876.9,1.06560147]
[1734234305926,0.51884213,3877.3,3877.0,0.05754133]
[1734234308563,0.8103,3877.4,3877.0,0.05754133]
[1734234310148,1.3185307,3877.4,3877.0,0.05754133]
[1734234312951,1.3185307,3877.4,3876.9,1.06560147]
[1734234313295,0.8044,3877.8,3877.1,1.06560147]
[1734234313577,0.8044,3878.1,3877.7,1.06560147]
[1734234313715,0.8044,3878.5,3877.9,1.06560147]
[1734234313914,1.142669,3878.5,3877.9,1.06560147]
[1734234314218,0.8044,3878.5,3878.0,0.05549128]
[1734234316426,0.8044,3878.5,3878.1,1.06560147]
[1734234316608,0.8044,3878.5,3878.1,1.12070744]
[1734234316813,3.40424,3878.8,3878.3,1.06560147]
[1734234317375,0.50835874,3878.9,3878.5,1.06560147]
[1734234317664,0.50835874,3878.9,3878.6,0.05498717]
[1734234318034,0.50835874,3878.9,3878.7,1.06560147]
[1734234318219,0.50835874,3878.9,3878.7,1.12060077]
[1734234318422,0.50835874,3878.9,3878.7,1.89430077]
[1734234320459,2.57759,3879.6,3878.7,2.08373085]
[1734234320660,2.57742,3879.9,3879.2,1.06560147]
[1734234320863,0.51187281,3879.3,3879.2,1.06560147]
[1734234322387,0.51187281,3879.3,3879.0,1.06560147]
[1734234324693,2.57787,3879.2,3878.7,0.7737]
[1734234325015,2.57787,3879.2,3878.8,1.06560147]
[1734234329034,2.57787,3879.2,3878.9,0.05398992]
[1734234329438,2.57787,3879.2,3878.8,1.06560147]
[1734234329678,2.57787,3879.2,3879.0,0.05398561]
[1734234329885,2.57787,3879.2,3878.8,1.06560147]
[1734234330117,2.57787,3879.2,3879.1,0.05398129]
[1734234330320,0.7599,3878.9,3877.6,0.8157]
[1734234330600,0.7599,3878.9,3878.1,1.06560147]
[1734234330802,2.5784,3878.4,3877.6,0.8157]
[1734234330956,2.5784,3878.4,3877.9,1.06560147]
[1734234332968,3.33836,3878.3,3877.7,1.06560147]
[1734234334585,0.7599,3878.3,3877.3,0.8157]
[1734234334785,0.7599,3878.3,3877.4,1.06560147]
[1734234334786,2.57858,3878.1,3877.4,1.06560147]
[1734234336112,0.333848,3878.1,3877.3,0.8157]
[1734234336317,0.7599,3878.3,3877.3,1.06560147]
[1734234336503,2.57873,3877.9,3877.3,1.06560147]
[1734234337349,1.28375985,3878.1,3877.7,1.06560147]
[1734234337491,0.7599,3878.8,3878.0,1.06560147]
[1734234337726,0.7599,3878.8,3877.6,0.8157]
[1734234337727,0.7599,3878.8,3877.8,1.06560147]
[1734234337928,0.333796,3878.7,3877.6,1.88130147]
[1734234338156,2.57845,3878.3,3877.6,1.88130147]
[1734234338381,2.57845,3878.3,3877.7,0.0542098]
[1734234340376,0.333796,3878.7,3877.8,1.06560147]
[1734234340377,2.57832,3878.5,3877.8,1.06560147]
[1734234340678,2.57832,3878.5,3877.9,0.05420118]
[1734234340829,0.51550857,3878.7,3877.9,0.05420118]
[1734234341026,2.57842,3878.4,3877.9,0.05420118]
[1734234341669,2.57842,3878.4,3877.6,1.88130147]
[1734234341870,1.06925686,3878.6,3878.0,0.05419686]
[1734234342026,2.57852,3878.2,3877.6,1.88130147]
[1734234342231,2.57852,3878.2,3878.1,0.05450408]
[1734234342671,2.57852,3878.2,3877.6,0.8157]
[1734234343031,2.57852,3878.2,3877.7,0.0546252]
[1734234347002,2.57876,3877.9,3877.7,0.0546252]
[1734234347287,0.257876,3877.8,3876.9,1.85650147]
[1734234347446,2.57893,3877.6,3877.1,1.06560147]
[1734234347850,2.57893,3877.6,3877.2,0.05465501]
[1734234350378,0.51282712,3878.0,3877.2,0.05465501]
[1734234350379,2.57906,3877.4,3877.2,0.05465501]
[1734234350594,3.37806,3877.4,3876.9,1.06560147]
[1734234350793,2.57914,3877.3,3876.7,1.06560147]
[1734234350947,2.57914,3877.3,3877.0,0.05466446]
[1734234351147,2.57914,3877.3,3877.1,0.05466015]
[1734234351362,2.57914,3877.3,3876.9,1.06560147]
[1734234351590,2.57914,3877.3,3877.0,0.05466446]
[1734234352249,0.799,3877.4,3877.0,0.05466446]
[1734234352590,2.57896,3877.6,3877.0,0.05466446]
[1734234352799,2.57899,3877.5,3877.0,0.05466446]
[1734234357068,0.337799,3877.5,3877.0,0.05466446]
[1734234357282,2.57923,3877.2,3877.0,0.05466446]
[1734234357450,2.57923,3877.2,3876.6,0.7909]
[1734234357657,2.57923,3877.2,3877.1,0.05534527]
[1734234358083,2.57923,3877.2,3876.6,0.7909]
[1734234358285,2.57923,3877.2,3877.1,0.05534527]
[1734234358457,2.917053,3877.2,3876.6,0.7909]
[1734234358672,2.57923,3877.2,3877.1,0.05534527]
[1734234358878,2.57923,3877.2,3876.6,0.7909]
[1734234359102,2.57923,3877.2,3877.1,0.05534527]
[1734234359302,2.57923,3877.2,3876.6,0.7909]
[1734234359970,2.57923,3877.2,3876.7,0.05551263]
[1734234360588,0.337823,3877.2,3876.7,0.05551263]
[1734234360804,2.57942,3876.9,3876.7,0.05551263]
[1734234361006,0.799,3876.8,3876.3,1.85650147]
[1734234361296,3.37845,3876.8,3876.3,0.7909]
[1734234362463,0.799,3876.8,3876.3,0.7909]
[1734234364108,2.57931,3877.0,3876.3,0.7909]
[1734234364109,2.57931,3877.0,3876.4,1.06560147]
[1734234367484,0.51470492,3877.1,3876.4,1.06560147]
[1734234367736,1.06560147,3877.8,3876.1,3.0]
[1734234367737,0.8235,3877.6,3876.9,0.7717]
[1734234367899,2.57905,3877.4,3876.9,0.7717]
[1734234368112,2.57913,3877.3,3876.6,1.83730147]
[1734234368477,2.57913,3877.3,3876.7,0.05599662]
[1734234369006,0.8235,3877.6,3876.7,0.05599662]
[1734234369192,0.8235,3877.4,3876.7,0.05599662]
[1734234369578,0.8235,3877.4,3876.4,1.06560147]
[1734234369824,2.57931,3877.0,3876.4,1.06560147]
[1734234370117,2.57931,3877.0,3876.5,0.05589723]
[1734234370609,2.5795,3876.8,3876.5,0.05589723]
[1734234370809,2.57952,3876.7,3876.1,1.06560147]
[1734234371111,2.57952,3876.7,3876.2,0.05591018]
[1734234372736,2.57961,3876.6,3876.2,0.05591018]
[1734234373024,2.57961,3876.6,3876.0,0.7717]
[1734234373380,2.57961,3876.6,3876.1,0.0559145]
[1734234374686,0.8235,3876.5,3876.1,0.0559145]
[1734234375128,0.8235,3876.5,3875.6,0.7717]
[1734234375336,0.8235,3876.5,3876.2,0.05629128]
[1734234375542,0.8235,3876.5,3875.4,1.06560147]
[1734234375543,2.57998,3876.0,3875.4,1.06560147]
[1734234375892,2.57998,3876.0,3875.5,0.05662764]
[1734234376691,2.58008,3875.9,3875.5,0.05662764]
[1734234377230,3.38148,3875.9,3875.5,0.05662764]
[1734234377644,2.58013,3875.8,3875.5,0.05662764]
[1734234377815,2.5802,3875.7,3875.5,0.05662764]
[1734234378012,2.5802,3875.7,3875.3,0.7717]
[1734234378350,0.8014,3875.9,3875.4,0.05663196]
[1734234380504,2.57979,3876.3,3875.4,1.12223343]
[1734234381710,3.10355198,3876.3,3875.5,0.7686]
[1734234382100,3.10355198,3876.3,3875.6,0.05735685]
[1734234383301,0.52376198,3876.3,3875.6,0.05735685]
[1734234383538,2.57993,3876.1,3875.6,0.05735685]
[1734234385373,0.52376198,3876.3,3875.8,1.06560147]
[1734234385641,0.52376198,3876.3,3875.9,0.05731333]
[1734234386034,0.52376198,3876.3,3876.2,1.06560147]
[1734234386255,0.52376198,3876.3,3876.2,0.05726981]
[1734234388422,2.57941,3876.9,3876.2,0.05726981]
[1734234391611,0.50359081,3876.4,3876.2,0.05726981]
[1734234393324,0.50359081,3876.4,3875.8,1.85970147]
[1734234393543,0.50359081,3876.4,3876.3,0.05675884]
[1734234393728,3.46674589,3876.4,3875.6,1.06560147]
[1734234393920,3.08336081,3876.4,3876.3,0.05675884]
[1734234394147,3.08336081,3876.4,3875.6,1.06560147]
[1734234394352,0.50359081,3876.4,3875.6,1.06560147]
[1734234394657,0.50359081,3876.4,3875.8,1.06560147]
[1734234395012,0.50359081,3876.4,3875.9,0.05677611]
[1734234396528,0.50359081,3876.4,3876.0,1.82240147]
[1734234396861,0.50359081,3876.4,3876.0,0.81357179]
[1734234400568,0.50359081,3876.4,3876.0,2.06709059]
[1734234401626,0.8069,3876.9,3876.2,1.06560147]
[1734234401827,3.38612,3877.2,3876.3,0.0568397]
[1734234402991,2.57926,3877.1,3876.3,0.0568397]
[1734234403329,3.09765585,3877.1,3876.3,0.0568397]
[1734234403655,2.57926,3877.1,3876.3,0.0568397]
[1734234405168,2.57926,3877.1,3876.4,0.893033]
[1734234405387,2.57904,3877.4,3876.6,1.06560147]
[1734234405529,2.57904,3877.4,3876.5,0.81355188]
[1734234405731,0.51238403,3877.3,3876.7,0.05662942]
[1734234405978,0.51238403,3877.3,3876.6,1.06560147]
[1734234406280,0.8069,3877.5,3876.9,0.7568]
[1734234406829,0.8069,3877.5,3877.0,0.05658014]
[1734234408780,1.19756638,3877.5,3877.0,0.05658014]
[1734234409138,1.19756638,3877.5,3876.5,0.812]
[1734234409371,0.812,3877.5,3877.1,0.05637539]
[1734234409566,0.812,3877.5,3876.5,0.812]
[1734234409787,2.57915,3877.3,3876.5,0.812]
[1734234410015,2.57915,3877.3,3876.6,0.05640275]
[1734234411239,0.812,3877.1,3876.6,0.05640275]
[1734234411370,2.57942,3876.9,3876.6,0.05640275]
[1734234411579,2.57945,3876.8,3876.0,3.0]
[1734234411873,3.39159,3876.6,3876.1,0.8929633]
[1734234412105,3.39159,3876.6,3875.9,0.812]
[1734234412278,3.39159,3876.6,3876.0,0.8929982]
[1734234413050,2.57972,3876.4,3875.6,1.89316633]
[1734234413211,2.57978,3876.3,3875.7,2.23274133]
[1734234413517,2.57978,3876.3,3875.6,0.812]
[1734234413698,2.57978,3876.3,3875.7,0.8931658]
[1734234413909,3.00563795,3876.3,3875.7,0.8931658]
[1734234414487,0.42585795,3876.3,3875.7,0.8931658]
[1734234414687,2.57966,3876.5,3875.7,0.8931658]
[1734234415094,2.57966,3876.5,3875.8,0.89321303]
[1734234415287,2.57966,3876.5,3875.6,1.89316633]
[1734234415582,2.57966,3876.5,3875.7,2.2331734]
[1734234415921,2.57973,3876.4,3875.6,0.812]
[1734234416071,0.42585295,3876.3,3875.7,0.89330159]
[1734234416911,0.42585295,3876.3,3875.3,1.85266633]
[1734234416912,2.58004,3876.0,3875.3,1.85266633]
[1734234417195,2.58004,3876.0,3875.3,0.7715]
[1734234418346,3.09463453,3876.0,3875.3,0.7715]
[1734234418547,0.39076345,3875.9,3875.3,0.7715]
[1734234419031,0.39076345,3875.9,3875.4,0.94984748]
[1734234419237,0.39076345,3875.9,3875.4,0.05653951]
[1734234419540,2.97086345,3875.9,3875.0,0.7715]
[1734234419720,2.97086345,3875.9,3875.5,0.05653686]
[1734234420033,0.51459453,3876.0,3875.5,0.05653686]
[1734234420034,0.51459453,3876.0,3875.6,0.7715]
[1734234420238,0.51459453,3876.0,3875.6,0.82803254]
[1734234422905,0.51459453,3876.0,3875.7,1.06560147]
[1734234423109,0.813,3876.9,3876.0,0.7715]
[1734234423409,0.44685162,3876.8,3876.1,1.06560147]
[1734234423632,0.44685162,3876.8,3876.2,0.89300568]
[1734234423987,0.44685162,3876.8,3876.3,0.0573266]
[1734234424439,0.813,3877.1,3876.3,1.06560147]
[1734234424744,0.5126353,3876.8,3876.4,0.05732228]
[1734234425550,0.5126353,3876.8,3876.0,4.27407777]
[1734234425737,0.5126353,3876.8,3876.5,0.05696561]
[1734234425937,0.5126353,3876.8,3876.1,1.08116633]
[1734234426239,0.5126353,3876.8,3876.6,0.05696129]
[1734234426445,0.5126353,3876.8,3876.1,1.08116633]
[1734234426746,0.5126353,3876.8,3876.1,3.31376283]
[1734234426890,0.5126353,3876.8,3876.2,2.28957507]
[1734234427091,0.5126353,3876.8,3876.3,0.8930386]
[1734234427324,0.5126353,3876.8,3876.3,0.05697425]
[1734234427537,0.5126353,3876.8,3876.0,3.19291144]
[1734234427708,0.5126353,3876.8,3876.4,0.05687753]
[1734234427904,0.5126353,3876.8,3876.1,0.58958273]
[1734234428122,0.5126353,3876.8,3876.5,0.05687321]
[1734234428445,0.5126353,3876.8,3876.1,0.58958273]
[1734234428746,0.5126353,3876.8,3876.2,0.89313077]
[1734234428921,0.5126353,3876.8,3876.4,0.8292]
[1734234429395,0.5126353,3876.8,3876.5,0.05693674]
[1734234430535,0.5126353,3876.8,3876.6,0.8930282]
[1734234430740,0.5126353,3876.8,3876.7,0.8292]
[1734234430926,0.5126353,3876.8,3876.7,3.11853337]
[1734234431121,0.5126353,3876.8,3876.7,4.20072949]
[1734234433342,0.5126353,3876.8,3876.7,8.28189582]
[1734234433546,0.5126353,3876.8,3876.7,7.20072949]
[1734234434461,0.5126353,3876.8,3876.7,8.27992345]
[1734234435322,0.5126353,3876.8,3876.7,8.27987312]
[1734234435516,0.5126353,3876.8,3876.7,8.27822644]
[1734234436031,0.5126353,3876.8,3876.7,7.19908281]
[1734234437262,0.5126353,3876.8,3876.7,7.19850728]
[1734234437624,0.5126353,3876.8,3876.7,5.86036864]
[1734234439858,0.5126353,3876.8,3876.7,4.96827621]
[1734234440042,0.5126353,3876.8,3876.7,5.86020016]
[1734234440590,0.5126353,3876.8,3876.7,5.86016885]
[1734234442847,0.5126353,3876.8,3876.7,5.86014267]
[1734234443440,0.5126353,3876.8,3876.7,4.96827621]
[1734234447194,0.5126353,3876.8,3876.7,3.03237066]
[1734234447353,0.5126353,3876.8,3876.7,4.9501186]
[1734234447888,0.5126353,3876.8,3876.7,1.9501186]
[1734234450804,0.5126353,3876.8,3876.7,5.84186329]
[1734234451219,0.5126353,3876.8,3876.7,7.17943944]
[1734234451828,0.5126353,3876.8,3876.7,7.1793082]
[1734234452030,0.5126353,3876.8,3876.7,8.42528133]
[1734234452194,0.5126353,3876.8,3876.7,7.08776757]
[1734234452525,0.5126353,3876.8,3876.7,8.42523134]
[1734234453730,0.5126353,3876.8,3876.7,8.42510458]
[1734234456436,0.8261,3877.7,3876.8,3.0]
[1734234456736,0.8261,3877.7,3877.2,1.06409445]
[1734234457237,0.8261,3877.7,3877.3,0.05543883]
[1734234457538,0.8261,3877.7,3877.2,1.06409445]
[1734234457705,0.8261,3877.7,3877.4,0.05543452]
[1734234458042,0.8261,3877.7,3877.2,1.06409445]
[1734234458246,0.8261,3877.7,3877.5,0.0554302]
[1734234458533,0.8261,3877.7,3877.6,0.05542589]
[1734234458732,0.8261,3877.7,3877.2,1.29554638]
[1734234458937,0.8261,3877.7,3877.6,0.05542589]
[1734234459092,0.8261,3877.7,3877.2,1.29554638]
[1734234459294,0.8261,3877.7,3877.6,0.05542589]
[1734234459525,0.8261,3877.7,3877.2,1.29554638]
[1734234459709,0.8261,3877.7,3877.6,0.05542589]
[1734234459911,0.8261,3877.7,3877.2,1.29554638]
[1734234459912,0.8261,3877.7,3877.2,1.06409445]
[1734234460119,0.8261,3877.7,3877.6,0.05542589]
[1734234460429,1.34447679,3877.7,3877.2,1.06409445]
[1734234460623,1.34447679,3877.7,3877.6,0.05542589]
[1734234460839,1.34447679,3877.7,3877.2,1.06409445]
[1734234461040,1.34447679,3877.7,3877.6,0.05542589]
[1734234461235,1.34447679,3877.7,3877.2,1.06409445]
[1734234461701,1.34447679,3877.7,3877.3,0.05543883]
[1734234462038,1.34447679,3877.7,3877.2,1.06409445]
[1734234462334,1.34447679,3877.7,3877.3,0.05543883]
[1734234462632,1.34447679,3877.7,3877.2,1.06409445]
[1734234462836,1.34447679,3877.7,3877.4,0.05543452]
[1734234463020,1.34447679,3877.7,3877.3,0.05543883]
[1734234463225,1.34447679,3877.7,3877.5,0.0554302]
[1734234463394,1.34447679,3877.7,3877.4,0.05543452]
[1734234463602,1.34447679,3877.7,3877.6,0.05542589]
[1734234464127,1.34447679,3877.7,3877.2,1.06409445]
[1734234464331,1.34447679,3877.7,3877.6,0.05542589]
[1734234464635,1.34447679,3877.7,3877.2,1.06409445]
[1734234465257,1.34447679,3877.7,3877.3,0.05543883]
[1734234465601,1.34447679,3877.7,3877.2,1.06409445]
[1734234465823,1.34447679,3877.7,3877.4,0.05543117]
[1734234466076,1.34447679,3877.7,3877.3,0.05543549]
[1734234466229,1.34447679,3877.7,3877.5,0.05542685]
[1734234466570,1.34447679,3877.7,3877.6,0.05542254]
[1734234466888,1.34447679,3877.7,3877.2,1.06409445]
[1734234467042,1.34447679,3877.7,3877.6,0.05542254]
[1734234467231,1.34447679,3877.7,3877.2,1.06409445]
[1734234467728,1.34447679,3877.7,3877.3,0.05543139]
[1734234468067,1.34447679,3877.7,3877.2,1.06409445]
[1734234468370,1.34447679,3877.7,3877.3,0.05543139]
[1734234468540,1.34447679,3877.7,3877.2,1.06409445]
[1734234468734,1.34447679,3877.7,3877.4,0.05528854]
[1734234469067,1.34447679,3877.7,3877.3,1.06409445]
[1734234469269,1.34447679,3877.7,3877.5,0.05528422]
[1734234469474,1.34447679,3877.7,3877.4,0.05528854]
[1734234469679,1.34447679,3877.7,3877.6,0.05527991]
[1734234470299,1.34447679,3877.7,3877.3,1.06409445]
[1734234470584,1.34447679,3877.7,3877.6,0.05527991]
[1734234470738,1.34447679,3877.7,3877.3,1.06409445]
[1734234470939,1.34447679,3877.7,3877.6,0.05527991]
[1734234471140,1.34447679,3877.7,3877.3,1.06409445]
[1734234471343,1.34447679,3877.7,3877.6,0.05527991]
[1734234471580,1.34447679,3877.7,3877.3,1.06409445]
[1734234471879,1.34447679,3877.7,3877.6,0.05527991]
[1734234472352,1.34447679,3877.7,3877.3,1.06409445]
[1734234472553,1.34447679,3877.7,3877.6,0.05527991]
[1734234472757,1.34447679,3877.7,3877.3,1.06409445]
[1734234472951,1.34447679,3877.7,3877.6,0.05527991]
[1734234473278,1.34447679,3877.7,3877.3,1.06409445]
[1734234473477,1.34447679,3877.7,3877.6,0.05527991]
[1734234474083,1.34447679,3877.7,3877.3,1.06409445]
[1734234474302,1.34447679,3877.7,3877.6,0.05527991]
[1734234474582,1.34447679,3877.7,3877.4,0.05528854]
[1734234474746,1.34447679,3877.7,3877.3,1.06409445]
[1734234474940,1.34447679,3877.7,3877.5,0.05528422]
[1734234475182,1.34447679,3877.7,3877.4,0.05528854]
[1734234475388,1.34447679,3877.7,3877.5,0.89427863]
[1734234475569,1.34447679,3877.7,3877.5,0.05528422]
[1734234475886,1.34447679,3877.7,3877.3,1.06409445]
[1734234476054,1.34447679,3877.7,3877.6,0.05527991]
[1734234476255,1.34447679,3877.7,3877.3,1.06409445]
[1734234476471,1.34447679,3877.7,3877.6,0.05527991]
[1734234476941,1.34447679,3877.7,3877.3,2.14323808]
[1734234477142,1.34447679,3877.7,3877.6,0.05527991]
[1734234477388,1.34447679,3877.7,3877.3,1.06409445]
[1734234477549,1.34447679,3877.7,3877.6,0.05527991]
[1734234477750,1.34447679,3877.7,3877.3,1.06409445]
[1734234477996,1.34447679,3877.7,3877.6,0.05527991]
[1734234478303,1.34447679,3877.7,3877.3,1.06409445]
[1734234478452,1.34447679,3877.7,3877.6,0.05527991]
[1734234478646,1.34447679,3877.7,3877.3,1.06409445]
[1734234478841,1.34447679,3877.7,3877.6,0.05534918]
[1734234479060,1.34447679,3877.7,3877.3,1.06409445]
[1734234479259,1.34447679,3877.7,3877.6,0.05534918]
[1734234479442,1.34447679,3877.7,3877.3,1.06409445]
[1734234479671,1.34447679,3877.7,3877.6,0.05534918]
[1734234479871,1.34447679,3877.7,3877.3,1.06409445]
[1734234480071,1.34447679,3877.7,3877.6,0.05534918]
[1734234480297,1.84440809,3877.7,3877.2,1.07914363]
[1734234480444,2.57919,3877.2,3876.9,1.07914363]
[1734234480645,0.774,3877.1,3877.0,2.23672445]
[1734234480849,3.35328,3877.1,3876.7,1.07914363]
[1734234481073,3.35328,3877.1,3876.8,0.89472846]
[1734234481289,0.774,3877.1,3876.6,1.07914363]
[1734234481490,0.774,3877.1,3876.7,2.23649898]
[1734234481703,0.774,3877.1,3876.8,2.2364861]
[1734234481910,0.774,3877.1,3876.9,0.89457987]
[1734234482048,0.774,3877.1,3876.6,2.14323808]
[1734234482250,0.774,3877.1,3876.8,1.06409445]
[1734234482453,0.774,3877.4,3877.0,1.06409445]
[1734234482754,0.774,3877.4,3877.1,0.8943966]
[1734234482948,0.774,3877.4,3877.0,1.06409445]
[1734234483195,0.774,3877.4,3877.1,0.89438417]
[1734234483751,0.774,3877.4,3876.8,2.14323808]
[1734234483950,0.774,3877.4,3876.9,2.2359055]
[1734234484147,0.50439104,3877.2,3877.0,2.2359055]
[1734234484395,0.50439104,3877.2,3876.6,2.14323808]
[1734234484559,0.50439104,3877.2,3876.7,2.23599553]
[1734234484763,0.50439104,3877.2,3876.8,0.89439821]
[1734234484972,0.50439104,3877.2,3876.6,2.14323808]
[1734234485182,0.50439104,3877.2,3876.7,2.23600001]
[1734234485496,0.50439104,3877.2,3876.8,0.8944]